[Event "Titled Tuesday Blitz April 19 Early 2022"]
[White "Fromm, Marius"]
[Black "Zakhartsov, Vladimir"]
[WhiteFideId "12993190"]
[BlackFideId "4145097"]
[WhiteElo "2462"]
[BlackElo "2491"]
[Result "1-0"]
[Round "01"]
[TimeControl "180+1"]
[Date "2022.04.19"]
[WhiteClock "0:00:03"]
[BlackClock "0:01:02"]

1. e4 {[%clk 0:02:59]}  c5 {[%clk 0:02:58]} 2. Nf3 {[%clk 0:02:55]}  d6 {[%clk 0:02:58]} 3. d4 {[%clk 0:02:55]}  cxd4 {[%clk 0:02:58]} 4. Nxd4 {[%clk 0:02:56]}  Nf6 {[%clk 0:02:58]} 5. Nc3 {[%clk 0:02:55]}  a6 {[%clk 0:02:59]} 6. g3 {[%clk 0:02:55]}  b5 {[%clk 0:02:55]} 7. Bg2 {[%clk 0:02:54]}  Bb7 {[%clk 0:02:55]} 8. O-O {[%clk 0:02:53]}  e6 {[%clk 0:02:52]} 9. Re1 {[%clk 0:02:48]}  Qc7 {[%clk 0:02:51]} 10. a4 {[%clk 0:02:22]}  b4 {[%clk 0:02:52]} 11. Nd5 {[%clk 0:02:22]}  Nxd5 {[%clk 0:02:52]} 12. exd5 {[%clk 0:02:22]}  e5 {[%clk 0:02:53]} 13. f4 {[%clk 0:02:01]}  Be7 {[%clk 0:02:48]} 14. Nf5 {[%clk 0:01:57]}  O-O {[%clk 0:02:46]} 15. fxe5 {[%clk 0:01:46]}  Bc8 {[%clk 0:02:27]} 16. exd6 {[%clk 0:01:23]}  Bxd6 {[%clk 0:02:25]} 17. Nxd6 {[%clk 0:01:22]}  Qxd6 {[%clk 0:02:25]} 18. Bf4 {[%clk 0:01:22]}  Qb6+ {[%clk 0:02:25]} 19. Kh1 {[%clk 0:01:20]}  Bb7 {[%clk 0:02:24]} 20. Re7 {[%clk 0:01:04]}  a5 {[%clk 0:02:13]} 21. Qg1 {[%clk 0:00:58]}  Qa6 {[%clk 0:02:04]} 22. Rae1 {[%clk 0:00:54]}  h6 {[%clk 0:01:48]} 23. Qd4 {[%clk 0:00:52]}  Bc8 {[%clk 0:01:43]} 24. Re8 {[%clk 0:00:23]}  Nd7 {[%clk 0:01:42]} 25. d6 {[%clk 0:00:22]}  Bb7 {[%clk 0:01:41]} 26. Rxa8 {[%clk 0:00:19]}  Qxa8 {[%clk 0:01:40]} 27. Bxb7 {[%clk 0:00:18]}  Qxb7+ {[%clk 0:01:41]} 28. Qe4 {[%clk 0:00:18]}  Qc8 {[%clk 0:01:37]} 29. Qe7 {[%clk 0:00:15]}  Nf6 {[%clk 0:01:34]} 30. Be5 {[%clk 0:00:12]}  Re8 {[%clk 0:01:23]} 31. Bxf6 {[%clk 0:00:10]}  Rxe7 {[%clk 0:01:21]} 32. dxe7 {[%clk 0:00:09]}  Qe8 {[%clk 0:01:17]} 33. Bd4 {[%clk 0:00:06]}  f6 {[%clk 0:01:13]} 34. Kg1 {[%clk 0:00:05]}  Kf7 {[%clk 0:01:11]} 35. Bc5 {[%clk 0:00:05]}  h5 {[%clk 0:01:09]} 36. h4 {[%clk 0:00:05]}  g5 {[%clk 0:01:07]} 37. hxg5 {[%clk 0:00:03]}  fxg5 {[%clk 0:01:08]} 38. Rf1+ {[%clk 0:00:04]}  Kg7 {[%clk 0:01:08]} 39. Rf8 {[%clk 0:00:04]}  Qc6 {[%clk 0:01:07]} 40. Bd4+ {[%clk 0:00:03]}  Kh7 {[%clk 0:01:06]} 41. e8=Q {[%clk 0:00:03]}  Qd5 {[%clk 0:01:02]} 42. Rh8# {[%clk 0:00:03]} 1-0


[Site "https://www.chess.com"]

[Event "Titled Tuesday Blitz April 19 Early 2022"]
[White "Gracia Alvarez, Gerardo Antonio"]
[Black "Meshkovs, Nikita"]
[WhiteFideId "5109124"]
[BlackFideId "11602740"]
[WhiteElo "2139"]
[BlackElo "2506"]
[Result "1-0"]
[Round "01"]
[TimeControl "180+1"]
[Date "2022.04.19"]
[WhiteClock "0:00:30"]
[BlackClock "0:00:01"]

1. d4 {[%clk 0:03:00]}  Nf6 {[%clk 0:02:59]} 2. c4 {[%clk 0:03:01]}  e6 {[%clk 0:03:00]} 3. Nf3 {[%clk 0:02:59]}  d5 {[%clk 0:02:57]} 4. g3 {[%clk 0:02:57]}  Bb4+ {[%clk 0:02:57]} 5. Bd2 {[%clk 0:02:56]}  Be7 {[%clk 0:02:57]} 6. Bg2 {[%clk 0:02:56]}  O-O {[%clk 0:02:57]} 7. O-O {[%clk 0:02:56]}  c6 {[%clk 0:02:55]} 8. Qc2 {[%clk 0:02:56]}  Nbd7 {[%clk 0:02:54]} 9. Bf4 {[%clk 0:02:53]}  Nh5 {[%clk 0:02:49]} 10. Bc1 {[%clk 0:02:49]}  f5 {[%clk 0:02:44]} 11. b3 {[%clk 0:02:47]}  Bd6 {[%clk 0:02:30]} 12. Bb2 {[%clk 0:02:45]}  Qe7 {[%clk 0:02:26]} 13. Nc3 {[%clk 0:02:44]}  b6 {[%clk 0:02:15]} 14. e3 {[%clk 0:02:16]}  Ba6 {[%clk 0:02:14]} 15. Ne2 {[%clk 0:02:13]}  Rac8 {[%clk 0:02:08]} 16. Rac1 {[%clk 0:02:13]}  Nhf6 {[%clk 0:02:04]} 17. Rfd1 {[%clk 0:02:12]}  Ne4 {[%clk 0:02:02]} 18. Nf4 {[%clk 0:02:12]}  g5 {[%clk 0:01:13]} 19. Nd3 {[%clk 0:02:11]}  g4 {[%clk 0:01:09]} 20. Nfe5 {[%clk 0:02:11]}  Ndf6 {[%clk 0:01:09]} 21. Nf4 {[%clk 0:02:02]}  Ng5 {[%clk 0:01:01]} 22. h4 {[%clk 0:01:50]}  gxh3 {[%clk 0:00:52]} 23. Nxh3 {[%clk 0:01:49]}  Nxh3+ {[%clk 0:00:50]} 24. Bxh3 {[%clk 0:01:50]}  Bxe5 {[%clk 0:00:47]} 25. dxe5 {[%clk 0:01:50]}  Ne4 {[%clk 0:00:48]} 26. Kh2 {[%clk 0:01:43]}  Qg5 {[%clk 0:00:37]} 27. Rg1 {[%clk 0:01:42]}  Qh5 {[%clk 0:00:32]} 28. f4 {[%clk 0:00:53]}  Kf7 {[%clk 0:00:17]} 29. Qd1 {[%clk 0:00:53]}  Qxd1 {[%clk 0:00:08]} 30. Rgxd1 {[%clk 0:00:48]}  Rfd8 {[%clk 0:00:07]} 31. Bg2 {[%clk 0:00:45]}  Nf2 {[%clk 0:00:07]} 32. Rd2 {[%clk 0:00:45]}  Ng4+ {[%clk 0:00:07]} 33. Kg1 {[%clk 0:00:44]}  dxc4 {[%clk 0:00:08]} 34. Rxd8 {[%clk 0:00:43]}  Rxd8 {[%clk 0:00:09]} 35. Bxc6 {[%clk 0:00:43]}  Rd2 {[%clk 0:00:04]} 36. Bd4 {[%clk 0:00:35]}  Rxa2 {[%clk 0:00:03]} 37. bxc4 {[%clk 0:00:36]}  Kg6 {[%clk 0:00:01]} 38. Be8+ {[%clk 0:00:31]}  Kg7 {[%clk 0:00:01]} 39. Bc6 {[%clk 0:00:30]} 1-0


[Site "https://www.chess.com"]

[Event "Titled Tuesday Blitz April 19 Early 2022"]
[White "GrafLermontov"]
[Black "Babazada, Khazar"]
[BlackFideId "13413554"]
[WhiteElo "2480"]
[BlackElo "2406"]
[Result "0-1"]
[Round "01"]
[TimeControl "180+1"]
[Date "2022.04.19"]
[WhiteClock "0:00:06"]
[BlackClock "0:00:21"]

1. d4 {[%clk 0:03:00]}  Nf6 {[%clk 0:02:59]} 2. c4 {[%clk 0:02:56]}  g6 {[%clk 0:02:59]} 3. Nc3 {[%clk 0:02:56]}  Bg7 {[%clk 0:02:59]} 4. e4 {[%clk 0:02:56]}  d6 {[%clk 0:02:58]} 5. Be2 {[%clk 0:02:57]}  O-O {[%clk 0:02:58]} 6. Be3 {[%clk 0:02:57]}  e5 {[%clk 0:02:58]} 7. d5 {[%clk 0:02:58]}  Na6 {[%clk 0:02:57]} 8. g4 {[%clk 0:02:58]}  Nc5 {[%clk 0:02:57]} 9. Bf3 {[%clk 0:02:59]}  a5 {[%clk 0:02:48]} 10. h4 {[%clk 0:02:56]}  c6 {[%clk 0:02:32]} 11. g5 {[%clk 0:02:56]}  Nfd7 {[%clk 0:02:31]} 12. dxc6 {[%clk 0:02:55]}  bxc6 {[%clk 0:02:31]} 13. Qxd6 {[%clk 0:02:56]}  Qb6 {[%clk 0:02:07]} 14. Nge2 {[%clk 0:02:31]}  Ba6 {[%clk 0:01:56]} 15. O-O {[%clk 0:02:22]}  Qb4 {[%clk 0:01:47]} 16. b3 {[%clk 0:02:03]}  Rfd8 {[%clk 0:01:44]} 17. Qxc6 {[%clk 0:01:42]}  Rac8 {[%clk 0:01:44]} 18. Qd6 {[%clk 0:01:30]}  Bf8 {[%clk 0:01:24]} 19. Qd2 {[%clk 0:01:12]}  Nb6 {[%clk 0:01:24]} 20. Nd5 {[%clk 0:01:08]}  Nxd5 {[%clk 0:01:11]} 21. exd5 {[%clk 0:01:06]}  Qb6 {[%clk 0:01:10]} 22. Nc3 {[%clk 0:01:04]}  Qc7 {[%clk 0:00:56]} 23. Rad1 {[%clk 0:01:00]}  Ne6 {[%clk 0:00:54]} 24. Ne4 {[%clk 0:00:54]}  Bg7 {[%clk 0:00:53]} 25. Qb2 {[%clk 0:00:49]}  Nd4 {[%clk 0:00:53]} 26. Bxd4 {[%clk 0:00:48]}  exd4 {[%clk 0:00:52]} 27. Rxd4 {[%clk 0:00:32]}  a4 {[%clk 0:00:44]} 28. Nf6+ {[%clk 0:00:27]}  Kh8 {[%clk 0:00:39]} 29. Qe2 {[%clk 0:00:22]}  Qb6 {[%clk 0:00:37]} 30. Re4 {[%clk 0:00:16]}  axb3 {[%clk 0:00:33]} 31. axb3 {[%clk 0:00:17]}  Qxb3 {[%clk 0:00:34]} 32. Bg4 {[%clk 0:00:16]}  Bxc4 {[%clk 0:00:33]} 33. Qe3 {[%clk 0:00:11]}  Qxe3 {[%clk 0:00:29]} 34. Rxe3 {[%clk 0:00:11]}  Rb8 {[%clk 0:00:27]} 35. Rd1 {[%clk 0:00:11]}  Rb6 {[%clk 0:00:25]} 36. d6 {[%clk 0:00:10]}  Bb5 {[%clk 0:00:23]} 37. d7 {[%clk 0:00:10]}  Bxf6 {[%clk 0:00:23]} 38. gxf6 {[%clk 0:00:11]}  Rxf6 {[%clk 0:00:23]} 39. Re5 {[%clk 0:00:09]}  Bc6 {[%clk 0:00:22]} 40. f3 {[%clk 0:00:06]}  Kg7 {[%clk 0:00:22]} 41. Kf2 {[%clk 0:00:06]}  h5 {[%clk 0:00:21]} 0-1


[Site "https://www.chess.com"]

[Event "Titled Tuesday Blitz April 19 Early 2022"]
[White "Grischuk, Alexander"]
[Black "Ljukin, Sergei"]
[WhiteFideId "4126025"]
[BlackFideId "14102200"]
[WhiteElo "2762"]
[BlackElo "2312"]
[Result "1-0"]
[Round "01"]
[TimeControl "180+1"]
[Date "2022.04.19"]
[WhiteClock "0:01:18"]
[BlackClock "0:00:32"]

1. d4 {[%clk 0:03:00]}  d5 {[%clk 0:02:49]} 2. Nf3 {[%clk 0:03:00]}  Nf6 {[%clk 0:02:48]} 3. Bf4 {[%clk 0:03:00]}  c5 {[%clk 0:02:48]} 4. e3 {[%clk 0:03:00]}  Nc6 {[%clk 0:02:47]} 5. Nbd2 {[%clk 0:02:53]}  Bf5 {[%clk 0:02:45]} 6. Bb5 {[%clk 0:02:44]}  e6 {[%clk 0:02:43]} 7. O-O {[%clk 0:02:26]}  Be7 {[%clk 0:02:42]} 8. dxc5 {[%clk 0:02:15]}  Bxc5 {[%clk 0:02:41]} 9. Nd4 {[%clk 0:02:10]}  Bxd4 {[%clk 0:02:34]} 10. exd4 {[%clk 0:02:11]}  O-O {[%clk 0:02:34]} 11. Nb3 {[%clk 0:01:47]}  Rc8 {[%clk 0:02:21]} 12. c3 {[%clk 0:01:45]}  a6 {[%clk 0:02:19]} 13. Be2 {[%clk 0:01:45]}  Ne4 {[%clk 0:02:16]} 14. f3 {[%clk 0:01:38]}  Nd6 {[%clk 0:02:13]} 15. Nc5 {[%clk 0:01:38]}  Rc7 {[%clk 0:01:50]} 16. Rf2 {[%clk 0:01:27]}  Re7 {[%clk 0:01:49]} 17. Bf1 {[%clk 0:01:26]}  f6 {[%clk 0:01:49]} 18. Qb3 {[%clk 0:01:25]}  Rff7 {[%clk 0:01:38]} 19. Re1 {[%clk 0:01:24]}  Na5 {[%clk 0:01:29]} 20. Qd1 {[%clk 0:01:24]}  h5 {[%clk 0:01:09]} 21. Rfe2 {[%clk 0:01:19]}  Qd7 {[%clk 0:00:32]} 22. Nxd7 {[%clk 0:01:18]} 1-0


[Site "https://www.chess.com"]

[Event "Titled Tuesday Blitz April 19 Early 2022"]
[White "Hasangatin, Ramil"]
[Black "Gatterer, Florian"]
[WhiteFideId "4122160"]
[BlackFideId "811688"]
[WhiteElo "2375"]
[BlackElo "2218"]
[Result "1-0"]
[Round "01"]
[TimeControl "180+1"]
[Date "2022.04.19"]
[WhiteClock "0:02:22"]
[BlackClock "0:00:49"]

1. e4 {[%clk 0:02:59]}  e5 {[%clk 0:02:59]} 2. Nf3 {[%clk 0:02:59]}  Nc6 {[%clk 0:02:58]} 3. Bb5 {[%clk 0:03:00]}  a6 {[%clk 0:02:56]} 4. Ba4 {[%clk 0:03:00]}  Nf6 {[%clk 0:02:56]} 5. Bxc6 {[%clk 0:03:01]}  dxc6 {[%clk 0:02:55]} 6. d3 {[%clk 0:03:01]}  Bd6 {[%clk 0:02:55]} 7. Bg5 {[%clk 0:03:02]}  Be6 {[%clk 0:02:50]} 8. Nbd2 {[%clk 0:03:01]}  h6 {[%clk 0:02:50]} 9. Bh4 {[%clk 0:03:01]}  g5 {[%clk 0:02:50]} 10. Bg3 {[%clk 0:03:01]}  Nd7 {[%clk 0:02:50]} 11. Qe2 {[%clk 0:03:00]}  Qe7 {[%clk 0:02:45]} 12. h4 {[%clk 0:02:57]}  g4 {[%clk 0:02:22]} 13. Nh2 {[%clk 0:02:57]}  h5 {[%clk 0:02:22]} 14. Nhf1 {[%clk 0:02:57]}  O-O-O {[%clk 0:02:13]} 15. Ne3 {[%clk 0:02:57]}  Rhg8 {[%clk 0:02:01]} 16. Ndc4 {[%clk 0:02:53]}  Bb4+ {[%clk 0:01:56]} 17. c3 {[%clk 0:02:53]}  Bd6 {[%clk 0:01:53]} 18. d4 {[%clk 0:02:53]}  f6 {[%clk 0:01:44]} 19. d5 {[%clk 0:02:49]}  Nc5 {[%clk 0:01:08]} 20. dxe6 {[%clk 0:02:39]}  Nxe6 {[%clk 0:01:01]} 21. Nf5 {[%clk 0:02:38]}  Qh7 {[%clk 0:01:00]} 22. Ncxd6+ {[%clk 0:02:32]}  cxd6 {[%clk 0:00:59]} 23. O-O-O {[%clk 0:02:31]}  d5 {[%clk 0:00:56]} 24. Qc2 {[%clk 0:02:23]}  Nf4 {[%clk 0:00:49]} 25. Bxf4 {[%clk 0:02:21]}  exf4 {[%clk 0:00:50]} 26. exd5 {[%clk 0:02:21]}  cxd5 {[%clk 0:00:49]} 27. Nd6+ {[%clk 0:02:22]} 1-0


[Site "https://www.chess.com"]

[Event "Titled Tuesday Blitz April 19 Early 2022"]
[White "Ianov, Viktor"]
[Black "Okike, David"]
[WhiteFideId "14102730"]
[BlackFideId "8500134"]
[WhiteElo "2161"]
[BlackElo "2232"]
[Result "1-0"]
[Round "01"]
[TimeControl "180+1"]
[Date "2022.04.19"]
[WhiteClock "0:01:27"]
[BlackClock "0:01:35"]

1. Nf3 {[%clk 0:02:56]}  d5 {[%clk 0:02:59]} 2. g3 {[%clk 0:02:55]}  Bg4 {[%clk 0:02:58]} 3. Bg2 {[%clk 0:02:55]}  Nd7 {[%clk 0:02:57]} 4. c4 {[%clk 0:02:55]}  c6 {[%clk 0:02:57]} 5. cxd5 {[%clk 0:02:53]}  cxd5 {[%clk 0:02:56]} 6. Qa4 {[%clk 0:02:53]}  Nf6 {[%clk 0:02:55]} 7. Ne5 {[%clk 0:02:52]}  Bf5 {[%clk 0:02:54]} 8. Nc3 {[%clk 0:02:52]}  e6 {[%clk 0:02:54]} 9. g4 {[%clk 0:02:51]}  Bg6 {[%clk 0:02:49]} 10. h4 {[%clk 0:02:51]}  h6 {[%clk 0:02:37]} 11. Nxg6 {[%clk 0:02:48]}  fxg6 {[%clk 0:02:38]} 12. g5 {[%clk 0:02:47]}  hxg5 {[%clk 0:02:37]} 13. hxg5 {[%clk 0:02:48]}  Rxh1+ {[%clk 0:02:37]} 14. Bxh1 {[%clk 0:02:47]}  Ng8 {[%clk 0:02:33]} 15. d4 {[%clk 0:02:46]}  Ne7 {[%clk 0:02:32]} 16. e4 {[%clk 0:02:45]}  dxe4 {[%clk 0:02:26]} 17. Bxe4 {[%clk 0:02:44]}  Qb6 {[%clk 0:02:18]} 18. Bd2 {[%clk 0:02:33]}  Rd8 {[%clk 0:02:11]} 19. O-O-O {[%clk 0:02:31]}  Kf7 {[%clk 0:02:10]} 20. f4 {[%clk 0:02:25]}  Nb8 {[%clk 0:02:08]} 21. Be3 {[%clk 0:02:20]}  Nd5 {[%clk 0:02:07]} 22. Nxd5 {[%clk 0:02:13]}  exd5 {[%clk 0:02:06]} 23. Bc2 {[%clk 0:02:10]}  Nc6 {[%clk 0:01:59]} 24. Kb1 {[%clk 0:02:09]}  Bd6 {[%clk 0:01:56]} 25. f5 {[%clk 0:01:58]}  gxf5 {[%clk 0:01:56]} 26. Bxf5 {[%clk 0:01:58]}  Ne7 {[%clk 0:01:56]} 27. Qc2 {[%clk 0:01:53]}  g6 {[%clk 0:01:56]} 28. Bxg6+ {[%clk 0:01:45]}  Kg7 {[%clk 0:01:49]} 29. Bd3 {[%clk 0:01:44]}  Rc8 {[%clk 0:01:46]} 30. Qg2 {[%clk 0:01:43]}  Rf8 {[%clk 0:01:42]} 31. Qh3 {[%clk 0:01:39]}  Rh8 {[%clk 0:01:40]} 32. Qe6 {[%clk 0:01:39]}  Bb4 {[%clk 0:01:36]} 33. Qe5+ {[%clk 0:01:36]}  Kg8 {[%clk 0:01:35]} 34. Bf5 {[%clk 0:01:29]}  Qd6 {[%clk 0:01:35]} 35. Be6+ {[%clk 0:01:27]} 1-0


[Site "https://www.chess.com"]

[Event "Titled Tuesday Blitz April 19 Early 2022"]
[White "Jarocka, Liwia"]
[Black "Biletskiy, Danylo"]
[WhiteFideId "21807558"]
[BlackFideId "14155419"]
[WhiteElo "1896"]
[BlackElo "2087"]
[Result "0-1"]
[Round "01"]
[TimeControl "180+1"]
[Date "2022.04.19"]
[WhiteClock "0:01:34"]
[BlackClock "0:02:39"]

1. e4 {[%clk 0:02:58]}  c5 {[%clk 0:02:58]} 2. Nf3 {[%clk 0:02:55]}  Nc6 {[%clk 0:02:58]} 3. d4 {[%clk 0:02:55]}  cxd4 {[%clk 0:02:59]} 4. Nxd4 {[%clk 0:02:56]}  e5 {[%clk 0:02:57]} 5. Nb5 {[%clk 0:02:55]}  d6 {[%clk 0:02:56]} 6. N1c3 {[%clk 0:02:54]}  a6 {[%clk 0:02:56]} 7. Na3 {[%clk 0:02:54]}  b5 {[%clk 0:02:57]} 8. Nd5 {[%clk 0:02:55]}  Nge7 {[%clk 0:02:57]} 9. c4 {[%clk 0:02:53]}  Nxd5 {[%clk 0:02:57]} 10. cxd5 {[%clk 0:02:53]}  Nd4 {[%clk 0:02:57]} 11. Nc2 {[%clk 0:02:50]}  Bg4 {[%clk 0:02:58]} 12. Qd2 {[%clk 0:02:32]}  Nxc2+ {[%clk 0:02:58]} 13. Qxc2 {[%clk 0:02:32]}  Be7 {[%clk 0:02:57]} 14. Be2 {[%clk 0:02:29]}  Bxe2 {[%clk 0:02:52]} 15. Qxe2 {[%clk 0:02:29]}  O-O {[%clk 0:02:53]} 16. O-O {[%clk 0:02:29]}  f5 {[%clk 0:02:53]} 17. f3 {[%clk 0:02:19]}  Bg5 {[%clk 0:02:50]} 18. Bxg5 {[%clk 0:02:17]}  Qxg5 {[%clk 0:02:51]} 19. Rac1 {[%clk 0:02:15]}  Rac8 {[%clk 0:02:51]} 20. Rc2 {[%clk 0:02:10]}  Rxc2 {[%clk 0:02:48]} 21. Qxc2 {[%clk 0:02:11]}  Qe3+ {[%clk 0:02:48]} 22. Qf2 {[%clk 0:02:04]}  Qd3 {[%clk 0:02:46]} 23. exf5 {[%clk 0:01:54]}  Qxd5 {[%clk 0:02:45]} 24. g4 {[%clk 0:01:52]}  Qxa2 {[%clk 0:02:45]} 25. Qd2 {[%clk 0:01:49]}  d5 {[%clk 0:02:42]} 26. Re1 {[%clk 0:01:49]}  Re8 {[%clk 0:02:41]} 27. Qc3 {[%clk 0:01:40]}  Qc4 {[%clk 0:02:41]} 28. Rxe5 {[%clk 0:01:36]}  Qxc3 {[%clk 0:02:41]} 29. Rxe8+ {[%clk 0:01:35]}  Kf7 {[%clk 0:02:42]} 30. bxc3 {[%clk 0:01:33]}  Kxe8 {[%clk 0:02:42]} 31. Kf2 {[%clk 0:01:34]}  a5 {[%clk 0:02:39]} 32. Ke3 {[%clk 0:01:34]} 0-1


[Site "https://www.chess.com"]

[Event "Titled Tuesday Blitz April 19 Early 2022"]
[White "Kornyukov, Alexey"]
[Black "Lehtosaari, Mauri"]
[WhiteFideId "4150457"]
[BlackFideId "501999"]
[WhiteElo "2303"]
[BlackElo "2552"]
[Result "1-0"]
[Round "01"]
[TimeControl "180+1"]
[Date "2022.04.19"]
[WhiteClock "0:00:09"]
[BlackClock "0:00:01"]

1. d4 {[%clk 0:03:00]}  d5 {[%clk 0:02:59]} 2. c4 {[%clk 0:03:00]}  c6 {[%clk 0:03:00]} 3. Nf3 {[%clk 0:03:00]}  Nf6 {[%clk 0:03:00]} 4. e3 {[%clk 0:03:00]}  Bg4 {[%clk 0:03:00]} 5. Qb3 {[%clk 0:03:00]}  Qb6 {[%clk 0:02:59]} 6. c5 {[%clk 0:02:52]}  Qc7 {[%clk 0:02:52]} 7. Ne5 {[%clk 0:02:35]}  Bf5 {[%clk 0:02:47]} 8. Nc3 {[%clk 0:02:29]}  Nbd7 {[%clk 0:02:40]} 9. f4 {[%clk 0:02:28]}  Ne4 {[%clk 0:02:30]} 10. Be2 {[%clk 0:02:16]}  Ndf6 {[%clk 0:02:21]} 11. g4 {[%clk 0:02:00]}  Nxc3 {[%clk 0:02:15]} 12. Qxc3 {[%clk 0:01:54]}  Ne4 {[%clk 0:01:41]} 13. Qb3 {[%clk 0:01:51]}  Bc8 {[%clk 0:01:40]} 14. Bf3 {[%clk 0:01:39]}  f6 {[%clk 0:01:33]} 15. Bxe4 {[%clk 0:01:32]}  fxe5 {[%clk 0:01:32]} 16. Bf3 {[%clk 0:01:31]}  e4 {[%clk 0:01:22]} 17. Be2 {[%clk 0:01:31]}  g6 {[%clk 0:01:15]} 18. Bd2 {[%clk 0:01:25]}  Bg7 {[%clk 0:01:13]} 19. O-O {[%clk 0:01:07]}  O-O {[%clk 0:01:10]} 20. Be1 {[%clk 0:01:06]}  b6 {[%clk 0:00:52]} 21. Rc1 {[%clk 0:01:03]}  b5 {[%clk 0:00:35]} 22. a4 {[%clk 0:01:01]}  bxa4 {[%clk 0:00:31]} 23. Qxa4 {[%clk 0:00:59]}  Rb8 {[%clk 0:00:29]} 24. b4 {[%clk 0:00:59]}  h6 {[%clk 0:00:23]} 25. Ra1 {[%clk 0:00:55]}  Ra8 {[%clk 0:00:20]} 26. Bg3 {[%clk 0:00:51]}  Qb7 {[%clk 0:00:13]} 27. Ba6 {[%clk 0:00:42]}  Qxa6 {[%clk 0:00:12]} 28. Qxa6 {[%clk 0:00:42]}  Bxa6 {[%clk 0:00:12]} 29. Rxa6 {[%clk 0:00:42]}  Rfb8 {[%clk 0:00:10]} 30. Be1 {[%clk 0:00:33]}  Rc8 {[%clk 0:00:08]} 31. Bd2 {[%clk 0:00:33]}  Bf6 {[%clk 0:00:05]} 32. Rfa1 {[%clk 0:00:31]}  Rc7 {[%clk 0:00:05]} 33. R1a5 {[%clk 0:00:30]}  Kf7 {[%clk 0:00:04]} 34. b5 {[%clk 0:00:26]}  cxb5 {[%clk 0:00:05]} 35. Rxb5 {[%clk 0:00:26]}  g5 {[%clk 0:00:05]} 36. f5 {[%clk 0:00:24]}  Ke8 {[%clk 0:00:05]} 37. Ba5 {[%clk 0:00:22]}  Rcc8 {[%clk 0:00:04]} 38. Rb7 {[%clk 0:00:21]}  Rcb8 {[%clk 0:00:03]} 39. Rxb8+ {[%clk 0:00:17]}  Rxb8 {[%clk 0:00:04]} 40. Rxa7 {[%clk 0:00:17]}  Rb1+ {[%clk 0:00:04]} 41. Kf2 {[%clk 0:00:17]}  Rc1 {[%clk 0:00:04]} 42. Rc7 {[%clk 0:00:14]}  Rc2+ {[%clk 0:00:03]} 43. Kg1 {[%clk 0:00:13]}  Kf7 {[%clk 0:00:02]} 44. c6 {[%clk 0:00:13]}  Rc1+ {[%clk 0:00:02]} 45. Kg2 {[%clk 0:00:12]}  Rc2+ {[%clk 0:00:03]} 46. Kg3 {[%clk 0:00:11]}  Rc1 {[%clk 0:00:02]} 47. Rc8 {[%clk 0:00:11]}  e6 {[%clk 0:00:01]} 48. c7 {[%clk 0:00:09]}  exf5 {[%clk 0:00:01]} 49. gxf5 {[%clk 0:00:09]} 1-0


[Site "https://www.chess.com"]

[Event "Titled Tuesday Blitz April 19 Early 2022"]
[White "Kotepalli, Sai Nirupama"]
[Black "Yeletsky, Ivan"]
[WhiteFideId "5039444"]
[BlackFideId "24180327"]
[WhiteElo "2454"]
[BlackElo "2319"]
[Result "0-1"]
[Round "01"]
[TimeControl "180+1"]
[Date "2022.04.19"]
[WhiteClock "0:00:03"]
[BlackClock "0:01:03"]

1. e4 {[%clk 0:02:58]}  c5 {[%clk 0:02:58]} 2. Nf3 {[%clk 0:02:51]}  d6 {[%clk 0:02:58]} 3. d3 {[%clk 0:02:47]}  Nc6 {[%clk 0:02:56]} 4. g3 {[%clk 0:02:45]}  g6 {[%clk 0:02:56]} 5. Bg2 {[%clk 0:02:44]}  Bg7 {[%clk 0:02:56]} 6. O-O {[%clk 0:02:44]}  Nf6 {[%clk 0:02:51]} 7. c3 {[%clk 0:02:43]}  O-O {[%clk 0:02:50]} 8. Qe2 {[%clk 0:02:42]}  e5 {[%clk 0:02:49]} 9. a3 {[%clk 0:02:39]}  b5 {[%clk 0:02:49]} 10. Nh4 {[%clk 0:02:35]}  d5 {[%clk 0:02:43]} 11. exd5 {[%clk 0:02:32]}  Nxd5 {[%clk 0:02:44]} 12. c4 {[%clk 0:02:29]}  bxc4 {[%clk 0:02:44]} 13. dxc4 {[%clk 0:02:25]}  Nd4 {[%clk 0:02:42]} 14. Qd1 {[%clk 0:02:09]}  Nb6 {[%clk 0:02:43]} 15. Bxa8 {[%clk 0:02:07]}  Nxa8 {[%clk 0:02:42]} 16. Be3 {[%clk 0:02:00]}  Nb6 {[%clk 0:02:30]} 17. Nd2 {[%clk 0:01:47]}  Bh3 {[%clk 0:02:27]} 18. Re1 {[%clk 0:01:41]}  f5 {[%clk 0:02:19]} 19. Nhf3 {[%clk 0:01:34]}  Bg4 {[%clk 0:02:18]} 20. Bxd4 {[%clk 0:01:32]}  cxd4 {[%clk 0:02:17]} 21. Qb3 {[%clk 0:01:29]}  e4 {[%clk 0:02:11]} 22. c5+ {[%clk 0:01:21]}  Nd5 {[%clk 0:02:11]} 23. Nh4 {[%clk 0:01:16]}  Kh8 {[%clk 0:01:31]} 24. Ng2 {[%clk 0:01:10]}  e3 {[%clk 0:01:27]} 25. Nc4 {[%clk 0:01:05]}  f4 {[%clk 0:01:27]} 26. gxf4 {[%clk 0:00:53]}  exf2+ {[%clk 0:01:07]} 27. Kxf2 {[%clk 0:00:52]}  Nxf4 {[%clk 0:01:08]} 28. Nxf4 {[%clk 0:00:44]}  Rxf4+ {[%clk 0:01:09]} 29. Kg1 {[%clk 0:00:44]}  Bf3 {[%clk 0:01:05]} 30. h4 {[%clk 0:00:30]}  Qxh4 {[%clk 0:01:04]} 31. Qb8+ {[%clk 0:00:21]}  Bf8 {[%clk 0:01:04]} 32. Qe5+ {[%clk 0:00:18]}  Kg8 {[%clk 0:00:58]} 33. Qe6+ {[%clk 0:00:16]}  Rf7 {[%clk 0:00:58]} 34. Qxf7+ {[%clk 0:00:07]}  Kxf7 {[%clk 0:00:58]} 35. Ne5+ {[%clk 0:00:08]}  Kg7 {[%clk 0:00:58]} 36. Nxf3 {[%clk 0:00:09]}  Qg3+ {[%clk 0:00:59]} 37. Kf1 {[%clk 0:00:08]}  Qxf3+ {[%clk 0:01:00]} 38. Kg1 {[%clk 0:00:08]}  Bxc5 {[%clk 0:01:01]} 39. b4 {[%clk 0:00:05]}  Bb6 {[%clk 0:01:01]} 40. Ra2 {[%clk 0:00:03]}  d3+ {[%clk 0:01:02]} 41. Kh2 {[%clk 0:00:03]}  Bf2 {[%clk 0:01:03]} 0-1


[Site "https://www.chess.com"]